fUST/lending_fUST_20260523
["ID","MTS","AMOUNT","RATE_DAILY","PERIOD"]
[422829343,1779483040000,-500.0,8.219e-05,2]
[422829355,1779483040000,-151.0,8.219e-05,2]
[422829341,1779483040000,-500.0,8.219e-05,2]
[422829345,1779483040000,-500.0,8.219e-05,2]
[422829346,1779483040000,-151.0,8.219e-05,2]
[422829344,1779483040000,-500.0,8.219e-05,2]
[422829342,1779483040000,-243.49039352,8.219e-05,2]
[422829351,1779483040000,-151.0,8.219e-05,2]
[422829350,1779483040000,-151.0,8.219e-05,2]
[422829362,1779483040000,-271.456468,8.219e-05,2]
[422829361,1779483040000,-151.0,8.219e-05,2]
[422829352,1779483040000,-151.0,8.219e-05,2]
[422829360,1779483040000,-151.0,8.219e-05,2]
[422829356,1779483040000,-151.0,8.219e-05,2]
[422829354,1779483040000,-151.0,8.219e-05,2]
[422829335,1779483040000,-500.0,8.219e-05,2]
[422829340,1779483040000,-702.9,8.219e-05,2]
[422829326,1779483040000,-3864.97,8.219e-05,2]
[422829314,1779483040000,-539.44,8.219e-05,2]
[422829334,1779483040000,-740.5,8.219e-05,2]
[422829353,1779483040000,-500.0,8.219e-05,2]
[422829297,1779483040000,-500.0,8.219e-05,2]
[422829296,1779483040000,-500.0,8.219e-05,2]
[422829307,1779483040000,-500.0,8.219e-05,2]
[422829305,1779483040000,-2171.64,8.219e-05,2]
[422829302,1779483040000,-500.0,8.219e-05,2]
[422829298,1779483040000,-2058.16,8.219e-05,2]
[422829310,1779483040000,-215.37422713,8.219e-05,2]
[422829304,1779483040000,-500.0,8.219e-05,2]
[422829306,1779483040000,-500.0,8.219e-05,2]
[422829308,1779483040000,-500.0,8.219e-05,2]
[422829301,1779483040000,-500.0,8.219e-05,2]
[422829309,1779483040000,-654.56,8.219e-05,2]
[422829300,1779483040000,-500.0,8.219e-05,2]
[422829299,1779483040000,-500.0,8.219e-05,2]
[422829311,1779483040000,-1085.54,8.219e-05,2]
[422829312,1779483040000,-196.38305141,8.219e-05,2]
[422829318,1779483040000,-857.8,8.219e-05,2]
[422829317,1779483040000,-839.97,8.219e-05,2]
[422829315,1779483040000,-500.0,8.219e-05,2]
[422829319,1779483040000,-500.0,8.219e-05,2]
[422829320,1779483040000,-515.17,8.219e-05,2]
[422829322,1779483040000,-1244.98,8.219e-05,2]
[422829316,1779483040000,-4345.27,8.219e-05,2]
[422829321,1779483040000,-683.85,8.219e-05,2]
[422829313,1779483040000,-500.0,8.219e-05,2]
[422829324,1779483040000,-500.0,8.219e-05,2]
[422829325,1779483040000,-500.0,8.219e-05,2]
[422829323,1779483040000,-1976.02,8.219e-05,2]
[422829327,1779483040000,-500.0,8.219e-05,2]
[422829363,1779483040000,-151.0,8.219e-05,2]
[422829303,1779483040000,-542.93,8.219e-05,2]
[422829359,1779483040000,-151.0,8.219e-05,2]
[422829405,1779483040000,-311.072898,8.219e-05,2]
[422829396,1779483040000,-311.072898,8.219e-05,2]
[422829398,1779483040000,-311.072898,8.219e-05,2]
[422829407,1779483040000,-311.072898,8.219e-05,2]
[422829400,1779483040000,-311.072898,8.219e-05,2]
[422829403,1779483040000,-311.072898,8.219e-05,2]
[422829402,1779483040000,-311.072898,8.219e-05,2]
[422829408,1779483040000,-311.072898,8.219e-05,2]
[422829409,1779483040000,-500.0,8.219e-05,2]
[422829411,1779483040000,-2555.65,8.219e-05,2]
[422829410,1779483040000,-311.072898,8.219e-05,2]
[422829420,1779483040000,-645.30411298,8.219e-05,2]
[422829422,1779483040000,-500.0,8.219e-05,2]
[422829421,1779483040000,-500.0,8.219e-05,2]
[422829406,1779483040000,-500.0,8.219e-05,2]
[422829412,1779483040000,-908.25,8.219e-05,2]
[422829418,1779483040000,-855.96,8.219e-05,2]
[422829419,1779483040000,-500.0,8.219e-05,2]
[422829416,1779483040000,-583.12219918,8.219e-05,2]
[422829417,1779483040000,-930.3,8.219e-05,2]
[422829413,1779483040000,-1372.56,8.219e-05,2]
[422829358,1779483040000,-500.0,8.219e-05,2]
[422829424,1779483040000,-781.68,8.219e-05,2]
[422829425,1779483040000,-819.89,8.219e-05,2]
[422829428,1779483040000,-500.0,8.219e-05,2]
[422829431,1779483040000,-500.0,8.219e-05,2]
[422829426,1779483040000,-756.57,8.219e-05,2]
[422829430,1779483040000,-767.39,8.219e-05,2]
[422829423,1779483040000,-500.0,8.219e-05,2]
[422829427,1779483040000,-500.0,8.219e-05,2]
[422829429,1779483040000,-504.33,8.219e-05,2]
[422829397,1779483040000,-311.072898,8.219e-05,2]
[422829414,1779483040000,-500.0,8.219e-05,2]
[422829404,1779483040000,-311.072898,8.219e-05,2]
[422829394,1779483040000,-311.072898,8.219e-05,2]
[422829357,1779483040000,-151.0,8.219e-05,2]
[422829375,1779483040000,-271.456468,8.219e-05,2]
[422829364,1779483040000,-271.456468,8.219e-05,2]
[422829365,1779483040000,-151.0,8.219e-05,2]
[422829373,1779483040000,-271.456468,8.219e-05,2]
[422829370,1779483040000,-184.804683,8.219e-05,2]
[422829376,1779483040000,-271.456468,8.219e-05,2]
[422829368,1779483040000,-151.0,8.219e-05,2]
[422829366,1779483040000,-271.456468,8.219e-05,2]
[422829369,1779483040000,-271.456468,8.219e-05,2]
[422829367,1779483040000,-600.31,8.219e-05,2]
[422829372,1779483040000,-500.0,8.219e-05,2]
[422829371,1779483040000,-271.456468,8.219e-05,2]
[422829377,1779483040000,-271.456468,8.219e-05,2]
[422829374,1779483040000,-271.456468,8.219e-05,2]
[422829389,1779483040000,-311.072898,8.219e-05,2]
[422829379,1779483040000,-271.456468,8.219e-05,2]
[422829386,1779483040000,-825.58,8.219e-05,2]
[422829387,1779483040000,-940.56,8.219e-05,2]
[422829385,1779483040000,-500.0,8.219e-05,2]
[422829381,1779483040000,-271.456468,8.219e-05,2]
[422829380,1779483040000,-271.456468,8.219e-05,2]
[422829388,1779483040000,-949.62,8.219e-05,2]
[422829378,1779483040000,-500.0,8.219e-05,2]
[422829393,1779483040000,-311.072898,8.219e-05,2]
[422829383,1779483040000,-271.456468,8.219e-05,2]
[422829391,1779483040000,-311.072898,8.219e-05,2]
[422829382,1779483040000,-271.456468,8.219e-05,2]
[422829384,1779483040000,-271.456468,8.219e-05,2]
[422829395,1779483040000,-311.072898,8.219e-05,2]
[422829446,1779483041000,-573.99,8.219e-05,2]
[422829443,1779483041000,-507.69,8.219e-05,2]
[422829444,1779483041000,-738.63,8.219e-05,2]
[422829442,1779483041000,-500.0,8.219e-05,2]
[422829439,1779483041000,-500.0,8.219e-05,2]
[422829438,1779483041000,-500.0,8.219e-05,2]
[422829433,1779483041000,-153.83670094,8.219e-05,2]
[422829440,1779483041000,-500.0,8.219e-05,2]
[422829445,1779483041000,-500.0,8.219e-05,2]
[422829437,1779483041000,-500.0,8.219e-05,2]
[422829435,1779483041000,-994.95329906,8.219e-05,2]
[422829436,1779483041000,-500.0,8.219e-05,2]
[422829432,1779483041000,-485.13805903,8.219e-05,2]
[422829449,1779483041000,-1188.81,8.219e-05,2]
[422829441,1779483041000,-500.0,8.219e-05,2]
[422829450,1779483041000,-500.0,8.219e-05,2]
[422829452,1779483041000,-4290.8208,8.219e-05,2]
[422829448,1779483041000,-800.35,8.219e-05,2]
[422829453,1779483041000,-744.85,8.219e-05,2]
[422829467,1779483041000,-500.0,8.219e-05,2]
[422829468,1779483041000,-3355.59002706,8.219e-05,2]
[422829465,1779483041000,-500.0,8.219e-05,2]
[422829463,1779483041000,-500.0,8.219e-05,2]
[422829464,1779483041000,-500.0,8.219e-05,2]
[422829462,1779483041000,-172.692459,8.219e-05,2]
[422829466,1779483041000,-500.0,8.219e-05,2]
[422829451,1779483041000,-872.48,8.219e-05,2]
[422829455,1779483041000,-166.73327584,8.219e-05,2]
[422829454,1779483041000,-500.0,8.219e-05,2]
[422829457,1779483041000,-151.0,8.219e-05,2]
[422829447,1779483041000,-500.0,8.219e-05,2]
[422829459,1779483041000,-151.0,8.219e-05,2]
[422829461,1779483041000,-781.61,8.219e-05,2]
[422829490,1779483293000,163.0764927,3.428e-05,2]
[422829500,1779484156000,-1566.73854192,6.806e-05,2]
[422829554,1779484231000,-300.0,7.803e-05,2]
[422829550,1779484231000,-151.0,7.527e-05,2]
[422829552,1779484231000,-1200.0,7.802e-05,2]
[422829541,1779484231000,-150.0,7.106e-05,2]
[422829545,1779484231000,-443.0,7.106e-05,2]
[422829547,1779484231000,-151.4630466,7.527e-05,2]
[422829539,1779484231000,-406.75680378,6.881e-05,2]
[422829549,1779484231000,-151.0,7.527e-05,2]
[422829537,1779484231000,-1462.86317616,6.806e-05,2]
[422829528,1779484231000,-331.73833372,6.806e-05,2]
[422829543,1779484231000,-185.0,7.106e-05,2]
[422829560,1779484231000,-300.0,7.803e-05,2]
[422829556,1779484231000,-300.0,7.803e-05,2]
[422829562,1779484231000,-500.0,7.862e-05,2]
[422829558,1779484231000,-300.0,7.803e-05,2]
[422829587,1779484231000,-26.27621216,8.062e-05,2]
[422829583,1779484231000,-300.0,8.062e-05,2]
[422829581,1779484231000,-300.0,8.062e-05,2]
[422829579,1779484231000,-300.0,8.062e-05,2]
[422829575,1779484231000,-300.0,8.062e-05,2]
[422829585,1779484231000,-300.0,8.062e-05,2]
[422829573,1779484231000,-300.0,8.062e-05,2]
[422829566,1779484231000,-160.0,7.901e-05,2]
[422829568,1779484231000,-161.72364698,7.901e-05,2]
[422829570,1779484231000,-160.0,7.901e-05,2]
[422829564,1779484231000,-766.56709688,7.901e-05,2]
[422829577,1779484231000,-300.0,8.062e-05,2]
[422829711,1779484238000,-198.686,8.062e-05,2]
[422829722,1779484238000,-500.0,8.117e-05,2]
[422829717,1779484238000,-193.94699284,8.117e-05,2]
[422829716,1779484238000,-573.92436684,8.117e-05,2]
[422829714,1779484238000,-567.61150945,8.117e-05,2]
[422829710,1779484238000,-600.0,8.062e-05,2]
[422829715,1779484238000,-500.0,8.117e-05,2]
[422829713,1779484238000,-500.0,8.117e-05,2]
[422829712,1779484238000,-445.52875793,8.117e-05,2]
[422829701,1779484238000,-273.72378784,8.062e-05,2]
[422829706,1779484238000,-300.0,8.062e-05,2]
[422829707,1779484238000,-300.0,8.062e-05,2]
[422829708,1779484238000,-300.0,8.062e-05,2]
[422829704,1779484238000,-300.0,8.062e-05,2]
[422829705,1779484238000,-300.0,8.062e-05,2]
[422829720,1779484238000,-500.0,8.117e-05,2]
[422829703,1779484238000,-94.38191685,8.062e-05,2]
[422829702,1779484238000,-205.61808315,8.062e-05,2]
[422829700,1779484238000,-160.0,7.901e-05,2]
[422829709,1779484238000,-300.0,8.062e-05,2]
[422829721,1779484238000,-500.0,8.117e-05,2]
[422829718,1779484238000,-306.05300716,8.117e-05,2]
[422829723,1779484238000,-500.0,8.117e-05,2]
[422829744,1779484238000,-261.47483969,8.117e-05,2]
[422829719,1779484238000,-500.0,8.117e-05,2]
[422829743,1779484238000,-526.37160509,8.117e-05,2]
[422829741,1779484238000,-2.74636205,8.117e-05,2]
[422829740,1779484238000,-500.0,8.117e-05,2]
[422829738,1779484238000,-500.0,8.117e-05,2]
[422829739,1779484238000,-500.0,8.117e-05,2]
[422829737,1779484238000,-500.0,8.117e-05,2]
[422829736,1779484238000,-500.0,8.117e-05,2]
[422829733,1779484238000,-155.50225837,8.117e-05,2]
[422829735,1779484238000,-500.0,8.117e-05,2]
[422829742,1779484238000,-497.25363795,8.117e-05,2]
[422829734,1779484238000,-409.73288133,8.117e-05,2]
[422829732,1779484238000,-500.0,8.117e-05,2]
[422829727,1779484238000,-440.82047079,8.117e-05,2]
[422829726,1779484238000,-59.17952921,8.117e-05,2]
[422829725,1779484238000,-500.0,8.117e-05,2]
[422829724,1779484238000,-500.0,8.117e-05,2]
[422829728,1779484238000,-500.0,8.117e-05,2]
[422829730,1779484238000,-500.0,8.117e-05,2]
[422829731,1779484238000,-500.0,8.117e-05,2]
[422829729,1779484238000,-500.0,8.117e-05,2]
[422829784,1779484241000,-500.0,8.117e-05,2]
[422829775,1779484241000,-500.0,8.117e-05,2]
[422829785,1779484241000,-500.0,8.117e-05,2]
[422829779,1779484241000,-500.0,8.117e-05,2]
[422829780,1779484241000,-500.0,8.117e-05,2]
[422829778,1779484241000,-500.0,8.117e-05,2]
[422829776,1779484241000,-500.0,8.117e-05,2]
[422829774,1779484241000,-500.0,8.117e-05,2]
[422829777,1779484241000,-500.0,8.117e-05,2]
[422829770,1779484241000,-500.0,8.117e-05,2]
[422829771,1779484241000,-500.0,8.117e-05,2]
[422829772,1779484241000,-500.0,8.117e-05,2]
[422829768,1779484241000,-500.0,8.117e-05,2]
[422829769,1779484241000,-500.0,8.117e-05,2]
[422829767,1779484241000,-500.0,8.117e-05,2]
[422829765,1779484241000,-238.52516031,8.117e-05,2]
[422829766,1779484241000,-500.0,8.117e-05,2]
[422829781,1779484241000,-500.0,8.117e-05,2]
[422829773,1779484241000,-500.0,8.117e-05,2]
[422829783,1779484241000,-500.0,8.117e-05,2]
[422829804,1779484241000,-500.0,8.117e-05,2]
[422829786,1779484241000,-500.0,8.117e-05,2]
[422829782,1779484241000,-500.0,8.117e-05,2]
[422829802,1779484241000,-500.0,8.117e-05,2]
[422829803,1779484241000,-500.0,8.117e-05,2]
[422829801,1779484241000,-500.0,8.117e-05,2]
[422829798,1779484241000,-500.0,8.117e-05,2]
[422829800,1779484241000,-500.0,8.117e-05,2]
[422829799,1779484241000,-500.0,8.117e-05,2]
[422829796,1779484241000,-500.0,8.117e-05,2]
[422829797,1779484241000,-500.0,8.117e-05,2]
[422829805,1779484241000,-500.0,8.117e-05,2]
[422829795,1779484241000,-500.0,8.117e-05,2]
[422829792,1779484241000,-500.0,8.117e-05,2]
[422829793,1779484241000,-500.0,8.117e-05,2]
[422829791,1779484241000,-500.0,8.117e-05,2]
[422829790,1779484241000,-500.0,8.117e-05,2]
[422829789,1779484241000,-500.0,8.117e-05,2]
[422829788,1779484241000,-500.0,8.117e-05,2]
[422829787,1779484241000,-500.0,8.117e-05,2]
[422829794,1779484241000,-500.0,8.117e-05,2]
[422829806,1779484242000,-426.07389601,8.117e-05,2]
[422829808,1779484242000,-500.0,8.117e-05,2]
[422829809,1779484242000,-500.0,8.117e-05,2]
[422829807,1779484242000,-500.0,8.117e-05,2]
[422829811,1779484242000,-638.39410567,8.117e-05,2]
[422829813,1779484242000,-363.632055,8.117e-05,2]
[422829812,1779484242000,-136.367945,8.117e-05,2]
[422829814,1779484242000,-405.08950175,8.117e-05,2]
[422829810,1779484242000,-500.0,8.117e-05,2]
[422829837,1779484243000,-500.0,8.117e-05,2]
[422829846,1779484243000,-500.0,8.118e-05,2]
[422829838,1779484243000,-500.0,8.117e-05,2]
[422829836,1779484243000,-94.91049825,8.117e-05,2]
[422829840,1779484243000,-172.56690264,8.117e-05,2]
[422829842,1779484243000,-500.0,8.117e-05,2]
[422829841,1779484243000,-500.0,8.117e-05,2]
[422829844,1779484243000,-601.99408793,8.117e-05,2]
[422829839,1779484243000,-327.43309736,8.117e-05,2]
[422829845,1779484243000,-500.0,8.118e-05,2]
[422829848,1779484243000,-500.0,8.118e-05,2]
[422829847,1779484243000,-500.0,8.118e-05,2]
[422829849,1779484243000,-500.0,8.118e-05,2]
[422829850,1779484243000,-500.0,8.118e-05,2]
[422829852,1779484243000,-500.0,8.118e-05,2]
[422829853,1779484243000,-500.0,8.118e-05,2]
[422829851,1779484243000,-500.0,8.118e-05,2]
[422829854,1779484243000,-500.0,8.118e-05,2]
[422829843,1779484243000,-500.0,8.117e-05,2]
[422829857,1779484244000,-195.99361684,8.118e-05,2]
[422829858,1779484244000,-500.0,8.118e-05,2]
[422829859,1779484244000,-10359.31107636,8.119e-05,2]
[422829856,1779484244000,-500.0,8.118e-05,2]
[422829855,1779484244000,-500.0,8.118e-05,2]
[422829869,1779484246000,-30216.5169904,8.119e-05,2]
[422829868,1779484246000,-1257.029997,8.119e-05,2]
[422829871,1779485188000,202.39333879,0.0001275,120]
[422829934,1779485432000,-406.21870792,6.913e-05,2]
[422829932,1779485432000,-151.0,6.886e-05,2]
[422829936,1779485432000,-151.0,7.099e-05,2]
[422829938,1779485432000,-443.0,7.318e-05,2]
[422829940,1779485432000,-185.0,7.318e-05,2]
[422829942,1779485432000,-1200.0,7.391e-05,2]
[422829944,1779485432000,-456.643312,7.392e-05,2]
[422829955,1779485432000,-500.0,7.718e-05,2]
[422829953,1779485432000,-500.0,7.718e-05,2]
[422829951,1779485432000,-500.0,7.718e-05,2]
[422829957,1779485432000,-500.0,7.718e-05,2]
[422829945,1779485432000,-456.643312,7.392e-05,2]
[422829959,1779485432000,-300.0,7.718e-05,2]
[422829950,1779485432000,-325.9848009,7.392e-05,2]
[422829961,1779485432000,-300.0,7.718e-05,2]
[422829948,1779485432000,-456.6596809,7.392e-05,2]
[422829989,1779485432000,-2347.97246076,7.719e-05,2]
[422829981,1779485432000,-2907.19701079,7.719e-05,2]
[422829979,1779485432000,-29480.71390816,7.719e-05,2]
[422829985,1779485432000,-676.04006851,7.719e-05,2]
[422829983,1779485432000,-6329.51878425,7.719e-05,2]
[422829976,1779485432000,-440.41335325,7.719e-05,2]
[422829971,1779485432000,-50300.02969985,7.719e-05,2]
[422829967,1779485432000,-30436.99071238,7.719e-05,2]
[422829969,1779485432000,-5369.94332153,7.719e-05,2]
[422829965,1779485432000,-300.0,7.718e-05,2]
[422829963,1779485432000,-300.0,7.718e-05,2]
[422829973,1779485432000,-4296.67818282,7.719e-05,2]
[422830025,1779485438000,-231.31437106,7.718e-05,2]
[422830030,1779485438000,-500.0,7.718e-05,2]
[422830028,1779485438000,-500.0,7.718e-05,2]
[422830029,1779485438000,-203.08044807,7.718e-05,2]
[422830031,1779485438000,-500.0,7.718e-05,2]
[422830026,1779485438000,-500.0,7.718e-05,2]
[422830024,1779485438000,-500.0,7.718e-05,2]
[422830023,1779485438000,-290.45637782,7.718e-05,2]
[422830022,1779485438000,-209.54362218,7.718e-05,2]
[422830017,1779485438000,-500.0,7.718e-05,2]
[422830021,1779485438000,-500.0,7.718e-05,2]
[422830019,1779485438000,-388.32769023,7.718e-05,2]
[422830013,1779485438000,-500.0,7.718e-05,2]
[422830015,1779485438000,-62.22586481,7.718e-05,2]
[422830014,1779485438000,-358.03778391,7.718e-05,2]
[422830018,1779485438000,-500.0,7.718e-05,2]
[422830016,1779485438000,-149.96667756,7.718e-05,2]
[422830012,1779485438000,-500.0,7.718e-05,2]
[422830033,1779485438000,-500.0,7.718e-05,2]
[422830020,1779485438000,-500.0,7.718e-05,2]
[422830044,1779485438000,-3535.9439,8.219e-05,2]
[422830027,1779485438000,-500.0,7.718e-05,2]
[422830035,1779485438000,-158.949,7.818e-05,2]
[422830034,1779485438000,-107848.13674815,7.719e-05,2]
[422830053,1779485438000,-500.0,8.219e-05,2]
[422830052,1779485438000,-500.0,8.219e-05,2]
[422830056,1779485438000,-16.74799097,8.219e-05,2]
[422830049,1779485438000,-735.41,8.219e-05,2]
[422830046,1779485438000,-500.0,8.219e-05,2]
[422830050,1779485438000,-500.0,8.219e-05,2]
[422830051,1779485438000,-500.0,8.219e-05,2]
[422830055,1779485438000,-500.0,8.219e-05,2]
[422830048,1779485438000,-500.0,8.219e-05,2]
[422830047,1779485438000,-500.0,8.219e-05,2]
[422830054,1779485438000,-500.0,8.219e-05,2]
[422830040,1779485438000,-160.0,8.013e-05,2]
[422830032,1779485438000,-500.0,7.718e-05,2]
[422830038,1779485438000,-766.56709688,8.013e-05,2]
[422830045,1779485438000,-576.0933,8.219e-05,2]
[422830041,1779485438000,-161.72364698,8.111e-05,2]
[422830043,1779485438000,-1072.7019,8.219e-05,2]
[422830037,1779485438000,-526.74482693,8e-05,2]
[422830036,1779485438000,-500.0,7.92e-05,2]
[422830042,1779485438000,-160.0,8.111e-05,2]
[422830039,1779485438000,-160.0,8.013e-05,2]
[422830075,1779485443000,-310.8256863,8.219e-05,2]
[422830074,1779485443000,-644.0,8.219e-05,2]
[422830081,1779485446000,-500.0,8.219e-05,2]
[422830082,1779485446000,-500.0,8.219e-05,2]
[422830083,1779485446000,-385.02567727,8.219e-05,2]
[422830079,1779485446000,-129.35632273,8.219e-05,2]
[422830080,1779485446000,-707.85,8.219e-05,2]
[422830088,1779485751000,152.0,6.82e-05,30]
[422830092,1779485991000,175.600567,3.282e-05,2]
[422830093,1779485992000,175.600567,4.376e-05,2]
[422830097,1779486398000,152.0,6.825e-05,30]
[422830103,1779486552000,-175.600567,5.47e-05,2]
[422830104,1779486552000,-314.399433,5.744e-05,2]
[422830143,1779486632000,-123.95612099,6.671e-05,2]
[422830142,1779486632000,-175.600567,6.565e-05,2]
[422830141,1779486632000,-95.64348143,5.744e-05,2]
[422830169,1779486638000,-5172.77660208,7.419e-05,2]
[422830172,1779486638000,-151.0,7.486e-05,2]
[422830170,1779486638000,-449741.10728133,7.419e-05,2]
[422830171,1779486638000,-151.0,7.47e-05,2]
[422830173,1779486638000,-500.0,7.493e-05,2]
[422830174,1779486638000,-500.0,7.493e-05,2]
[422830175,1779486638000,-500.0,7.493e-05,2]
[422830176,1779486638000,-500.0,7.493e-05,2]
[422830177,1779486638000,-500.0,7.493e-05,2]
[422830167,1779486638000,-300.0,7.418e-05,2]
[422830188,1779486638000,-500.0,7.493e-05,2]
[422830180,1779486638000,-500.0,7.493e-05,2]
[422830179,1779486638000,-500.0,7.493e-05,2]
[422830181,1779486638000,-500.0,7.493e-05,2]
[422830182,1779486638000,-500.0,7.493e-05,2]
[422830183,1779486638000,-500.0,7.493e-05,2]
[422830178,1779486638000,-500.0,7.493e-05,2]
[422830165,1779486638000,-300.0,7.418e-05,2]
[422830152,1779486638000,-500.0,7.418e-05,2]
[422830168,1779486638000,-1200.0,7.418e-05,2]
[422830187,1779486638000,-500.0,7.493e-05,2]
[422830150,1779486638000,-500.0,7.418e-05,2]
[422830149,1779486638000,-72.29175991,6.671e-05,2]
[422830151,1779486638000,-500.0,7.418e-05,2]
[422830153,1779486638000,-374.73652028,7.418e-05,2]
[422830154,1779486638000,-125.26347972,7.418e-05,2]
[422830155,1779486638000,-500.0,7.418e-05,2]
[422830166,1779486638000,-300.0,7.418e-05,2]
[422830156,1779486638000,-500.0,7.418e-05,2]
[422830158,1779486638000,-500.0,7.418e-05,2]
[422830160,1779486638000,-500.0,7.418e-05,2]
[422830159,1779486638000,-500.0,7.418e-05,2]
[422830162,1779486638000,-500.0,7.418e-05,2]
[422830161,1779486638000,-300.34227201,7.418e-05,2]
[422830163,1779486638000,-576.61081167,7.418e-05,2]
[422830164,1779486638000,-207.03841686,7.418e-05,2]
[422830157,1779486638000,-500.0,7.418e-05,2]
[422830184,1779486638000,-500.0,7.493e-05,2]
[422830206,1779486638000,-2343.2832752,7.772e-05,2]
[422830185,1779486638000,-500.0,7.493e-05,2]
[422830212,1779486638000,-2679.76893037,7.895e-05,2]
[422830209,1779486638000,-300.35993,7.775e-05,2]
[422830211,1779486638000,-84217.81280587,7.8e-05,2]
[422830213,1779486638000,-500.0,7.917e-05,2]
[422830215,1779486638000,-2679.76893037,8.057e-05,2]
[422830214,1779486638000,-626.05192294,8e-05,2]
[422830217,1779486638000,-420.0,8.16e-05,2]
[422830210,1779486638000,-233.23247172,7.775e-05,2]
[422830216,1779486638000,-420.0,8.16e-05,2]
[422830222,1779486638000,-173.909193,8.219e-05,2]
[422830224,1779486638000,-151.0,8.219e-05,2]
[422830223,1779486638000,-151.0,8.219e-05,2]
[422830220,1779486638000,-794.0,8.2e-05,2]
[422830219,1779486638000,-1680.0,8.16e-05,2]
[422830225,1779486638000,-151.0,8.219e-05,2]
[422830186,1779486638000,-500.0,7.493e-05,2]
[422830218,1779486638000,-420.0,8.16e-05,2]
[422830208,1779486638000,-163.09729822,7.775e-05,2]
[422830221,1779486638000,-151.0,8.219e-05,2]
[422830207,1779486638000,-22972.4489462,7.772e-05,2]
[422830189,1779486638000,-536.11,7.493e-05,2]
[422830192,1779486638000,-2203.0,7.57e-05,2]
[422830194,1779486638000,-1413.0,7.57e-05,2]
[422830193,1779486638000,-647.0,7.57e-05,2]
[422830195,1779486638000,-185.0,7.57e-05,2]
[422830196,1779486638000,-447.119,7.57e-05,2]
[422830199,1779486638000,-160.0,7.619e-05,2]
[422830191,1779486638000,-2679.76893039,7.57e-05,2]
[422830201,1779486638000,-184.901,7.671e-05,2]
[422830205,1779486638000,-160.0,7.77e-05,2]
[422830198,1779486638000,-161.72364698,7.619e-05,2]
[422830204,1779486638000,-766.56709688,7.77e-05,2]
[422830190,1779486638000,-257815.58727017,7.519e-05,2]
[422830202,1779486638000,-2679.76893037,7.732e-05,2]
[422830197,1779486638000,-250.0,7.59e-05,2]
[422830200,1779486638000,-160.0,7.619e-05,2]
[422830203,1779486638000,-483.85063902,7.744e-05,2]
[422830259,1779486639000,-500.0,8.219e-05,2]
[422830271,1779486639000,-500.0,8.219e-05,2]
[422830272,1779486639000,-527.21,8.219e-05,2]
[422830269,1779486639000,-872.69,8.219e-05,2]
[422830270,1779486639000,-500.0,8.219e-05,2]
[422830267,1779486639000,-579.05,8.219e-05,2]
[422830263,1779486639000,-500.0,8.219e-05,2]
[422830266,1779486639000,-471.4065991,8.219e-05,2]
[422830264,1779486639000,-983.9,8.219e-05,2]
[422830265,1779486639000,-500.0,8.219e-05,2]
[422830261,1779486639000,-500.0,8.219e-05,2]
[422830274,1779486639000,-500.0,8.219e-05,2]
[422830268,1779486639000,-1226.26,8.219e-05,2]
[422830262,1779486639000,-500.0,8.219e-05,2]
[422830282,1779486639000,-901.17,8.219e-05,2]
[422830278,1779486639000,-877.07,8.219e-05,2]
[422830275,1779486639000,-1935.12,8.219e-05,2]
[422830279,1779486639000,-500.0,8.219e-05,2]
[422830277,1779486639000,-835.98,8.219e-05,2]
[422830276,1779486639000,-544.78,8.219e-05,2]
[422830280,1779486639000,-510.12,8.219e-05,2]
[422830293,1779486639000,-500.0,8.219e-05,2]
[422830281,1779486639000,-618.84274705,8.219e-05,2]
[422830283,1779486639000,-688.37,8.219e-05,2]
[422830284,1779486639000,-500.0,8.219e-05,2]
[422830286,1779486639000,-500.0,8.219e-05,2]
[422830287,1779486639000,-228.13382322,8.219e-05,2]
[422830288,1779486639000,-500.0,8.219e-05,2]
[422830260,1779486639000,-500.0,8.219e-05,2]
[422830273,1779486639000,-773.25,8.219e-05,2]
[422830258,1779486639000,-500.0,8.219e-05,2]
[422830236,1779486639000,-774.92,8.219e-05,2]